[Event "TOP 12F 2021"]
[Site "RENNES, France"]
[Date "2021.08.26"]
[Round "1.11"]
[White "Steil-Antoni, Fiona"]
[Black "Dornbusch, Tatiana"]
[Result "0-1"]
[TimeControl "1H30 + 30 sec/coup"]
[WhiteElo "2153"]
[BlackElo "2249"]

1. e4 {[%clk 01:30:58]} e5 {[%clk 01:30:43]} {[%emt 00:00:17]} 2. Nf3 {[%clk
01:31:22]} {[%emt 00:00:06]} Nc6 {[%clk 01:30:50]} {[%emt 00:00:24]} 3. d4
{[%clk 01:31:46]} {[%emt 00:00:07]} exd4 {[%clk 01:31:10]} {[%emt 00:00:10]} 4.
Nxd4 {[%clk 01:32:13]} {[%emt 00:00:03]} Bc5 {[%clk 01:30:56]} {[%emt
00:00:44]} 5. Be3 {[%clk 01:32:35]} {[%emt 00:00:08]} Qf6 {[%clk 01:30:47]}
{[%emt 00:00:39]} 6. c3 {[%clk 01:31:50]} {[%emt 00:01:15]} Nge7 {[%clk
01:30:07]} {[%emt 00:01:10]} 7. g3 {[%clk 01:31:55]} {[%emt 00:00:24]} d5
{[%clk 01:27:25]} {[%emt 00:03:13]} 8. Bg2 {[%clk 01:32:10]} {[%emt 00:00:15]}
Nxd4 {[%clk 01:18:19]} {[%emt 00:09:36]} 9. cxd4 {[%clk 01:32:18]} {[%emt
00:00:22]} Bb4+ {[%clk 01:17:52]} {[%emt 00:00:57]} 10. Nc3 {[%clk 01:32:43]}
{[%emt 00:00:04]} Bxc3+ {[%clk 01:17:04]} {[%emt 00:01:19]} 11. bxc3 {[%clk
01:33:10]} {[%emt 00:00:03]} dxe4 {[%clk 01:17:21]} {[%emt 00:00:13]} 12. Bxe4
{[%clk 01:33:02]} {[%emt 00:00:37]} O-O {[%clk 01:09:50]} {[%emt 00:08:02]} 13.
O-O {[%clk 01:31:22]} {[%emt 00:02:11]} c6 {[%clk 01:04:46]} {[%emt 00:05:35]}
14. Rb1 {[%clk 01:20:13]} {[%emt 00:11:38]} b6 {[%clk 00:50:58]} {[%emt
00:14:18]} 15. Qh5 {[%clk 01:13:27]} {[%emt 00:07:15]} h6 {[%clk 00:31:09]}
{[%emt 00:20:19]} 16. Rfe1 {[%clk 01:10:05]} {[%emt 00:03:51]} Bf5 {[%clk
00:30:00]} {[%emt 00:01:41]} 17. Bxf5 {[%clk 01:03:31]} {[%emt 00:07:03]} Qxf5
{[%clk 00:29:14]} {[%emt 00:01:17]} 18. Qxf5 {[%clk 01:03:16]} {[%emt
00:00:44]} Nxf5 {[%clk 00:29:42]} {[%emt 00:00:03]} 19. Bf4 {[%clk 00:59:52]}
{[%emt 00:03:53]} g5 {[%clk 00:28:25]} {[%emt 00:01:47]} 20. Bc1 {[%clk
00:55:42]} {[%emt 00:04:39]} Rfe8 {[%clk 00:27:36]} {[%emt 00:01:20]} 21. Ba3
{[%clk 00:54:30]} {[%emt 00:01:42]} f6 {[%clk 00:27:10]} {[%emt 00:00:56]} 22.
Kf1 {[%clk 00:47:58]} {[%emt 00:07:01]} Kf7 {[%clk 00:26:44]} {[%emt 00:00:56]}
23. h3 {[%clk 00:42:49]} {[%emt 00:05:39]} h5 {[%clk 00:23:19]} {[%emt
00:03:56]} 24. Bb4 {[%clk 00:32:25]} {[%emt 00:10:53]} h4 {[%clk 00:16:27]}
{[%emt 00:07:22]} 25. g4 {[%clk 00:31:57]} {[%emt 00:00:58]} Ng7 {[%clk
00:16:40]} {[%emt 00:00:17]} 26. a4 {[%clk 00:23:42]} {[%emt 00:08:45]} Rxe1+
{[%clk 00:12:23]} {[%emt 00:04:47]} 27. Rxe1 {[%clk 00:22:17]} {[%emt
00:01:54]} Ne6 {[%clk 00:10:32]} {[%emt 00:02:22]} 28. Re3 {[%clk 00:15:45]}
{[%emt 00:07:02]} c5 {[%clk 00:07:29]} {[%emt 00:03:34]} 29. dxc5 {[%clk
00:14:40]} {[%emt 00:01:34]} bxc5 {[%clk 00:07:56]} {[%emt 00:00:03]} 30. Ba5
{[%clk 00:14:49]} {[%emt 00:00:20]} Rb8 {[%clk 00:08:02]} {[%emt 00:00:25]} 31.
c4 {[%clk 00:08:18]} {[%emt 00:07:01]} Rb1+ {[%clk 00:06:40]} {[%emt 00:01:52]}
32. Re1 {[%clk 00:08:00]} {[%emt 00:00:48]} Rb2 {[%clk 00:06:08]} {[%emt
00:01:03]} 33. Rd1 {[%clk 00:06:46]} {[%emt 00:01:44]} Ke7 {[%clk 00:06:22]}
{[%emt 00:00:16]} 34. Bd2 {[%clk 00:01:57]} {[%emt 00:05:19]} Rc2 {[%clk
00:06:11]} {[%emt 00:00:41]} 35. a5 {[%clk 00:01:14]} {[%emt 00:01:12]} Rxc4
{[%clk 00:04:56]} {[%emt 00:01:45]} 36. Rb1 {[%clk 00:01:43]} {[%emt 00:00:01]}
Rd4 {[%clk 00:05:13]} {[%emt 00:00:14]} 37. Bc3 {[%clk 00:01:13]} {[%emt
00:01:00]} Rd7 {[%clk 00:05:31]} {[%emt 00:00:11]} 38. Rb8 {[%clk 00:00:35]}
{[%emt 00:01:08]} Nf4 {[%clk 00:04:59]} {[%emt 00:01:02]} 39. f3 {[%clk
00:00:47]} {[%emt 00:00:18]} Nxh3 {[%clk 00:04:17]} {[%emt 00:01:12]} 40. Rc8
{[%clk 00:01:16]} {[%emt 00:00:01]} Nf4 {[%clk 00:04:30]} {[%emt 00:00:17]} 41.
Rxc5 {[%clk 00:01:23]} {[%emt 00:00:23]} Rd1+ {[%clk 00:04:46]} {[%emt
00:00:14]} 0-1

[Event "TOP 12F 2021"]
[Site "RENNES, France"]
[Date "2021.08.26"]
[Round "1.12"]
[White "Leconte, Maria"]
[Black "Thomas, Anysia"]
[Result "1-0"]
[TimeControl "1H30 + 30 sec/coup"]
[WhiteElo "2232"]
[BlackElo "2170"]

1. e4 {[%clk 01:30:55]} {[%emt 00:00:04]} c5 {[%clk 01:30:55]} {[%emt
00:00:06]} 2. Nf3 {[%clk 01:31:15]} {[%emt 00:00:11]} g6 {[%clk 01:31:20]}
{[%emt 00:00:05]} 3. d4 {[%clk 01:31:26]} {[%emt 00:00:18]} cxd4 {[%clk
01:31:44]} {[%emt 00:00:06]} 4. Qxd4 {[%clk 01:31:47]} {[%emt 00:00:09]} Nf6
{[%clk 01:32:04]} {[%emt 00:00:10]} 5. Nc3 {[%clk 01:32:07]} {[%emt 00:00:10]}
Nc6 {[%clk 01:32:02]} {[%emt 00:00:31]} 6. Qa4 {[%clk 01:32:08]} {[%emt
00:00:28]} d6 {[%clk 01:31:34]} {[%emt 00:00:59]} 7. e5 {[%clk 01:31:54]}
{[%emt 00:00:44]} dxe5 {[%clk 01:31:48]} {[%emt 00:00:17]} 8. Nxe5 {[%clk
01:32:17]} {[%emt 00:00:07]} Bd7 {[%clk 01:31:57]} {[%emt 00:00:21]} 9. Nxd7
{[%clk 01:32:35]} {[%emt 00:00:11]} Nxd7 {[%clk 01:32:06]} {[%emt 00:00:20]} 10.
Be3 {[%clk 01:29:23]} {[%emt 00:03:42]} Nb6 {[%clk 01:25:10]} {[%emt 00:07:26]}
11. Qb5 {[%clk 01:20:01]} {[%emt 00:09:52]} Bg7 {[%clk 01:24:08]} {[%emt
00:01:32]} 12. a4 {[%clk 01:08:31]} {[%emt 00:12:01]} O-O {[%clk 01:18:26]}
{[%emt 00:06:11]} 13. a5 {[%clk 01:01:34]} {[%emt 00:07:27]} Bxc3+ {[%clk
01:01:07]} {[%emt 00:17:49]} 14. bxc3 {[%clk 01:01:57]} {[%emt 00:00:06]} Nd5
{[%clk 01:01:34]} {[%emt 00:00:04]} 15. O-O-O {[%clk 00:49:12]} {[%emt
00:13:16]} e6 {[%clk 00:51:54]} {[%emt 00:10:09]} 16. c4 {[%clk 00:49:33]}
{[%emt 00:00:09]} Nc3 {[%clk 00:15:52]} {[%emt 00:36:33]} 17. Rxd8 {[%clk
00:49:38]} {[%emt 00:00:26]} Raxd8 {[%clk 00:16:10]} {[%emt 00:00:11]} 18. Qb3
{[%clk 00:43:07]} {[%emt 00:07:01]} Rd1+ {[%clk 00:14:23]} {[%emt 00:02:18]} 19.
Kb2 {[%clk 00:43:32]} {[%emt 00:00:05]} Nb1 {[%clk 00:09:51]} {[%emt 00:05:02]}
20. g3 {[%clk 00:28:23]} {[%emt 00:15:39]} Nd2 {[%clk 00:05:08]} {[%emt
00:05:13]} 21. Bxd2 {[%clk 00:23:46]} {[%emt 00:05:07]} Rxd2 {[%clk 00:05:33]}
{[%emt 00:00:04]} 22. Qe3 {[%clk 00:23:12]} {[%emt 00:01:03]} Rd7 {[%clk
00:04:00]} {[%emt 00:02:03]} 23. h4 {[%clk 00:22:28]} {[%emt 00:01:16]} h5
{[%clk 00:03:06]} {[%emt 00:01:23]} 24. g4 {[%clk 00:22:16]} {[%emt 00:00:42]}
Nxa5 {[%clk 00:02:32]} {[%emt 00:01:05]} 25. Bd3 {[%clk 00:20:31]} {[%emt
00:02:14]} Rc8 {[%clk 00:02:21]} {[%emt 00:00:40]} 26. gxh5 {[%clk 00:18:25]}
{[%emt 00:02:37]} Rxc4 {[%clk 00:01:39]} {[%emt 00:01:12]} 27. hxg6 {[%clk
00:18:00]} {[%emt 00:00:55]} Rb4+ {[%clk 00:01:39]} {[%emt 00:00:31]} 28. Kc3
{[%clk 00:17:43]} {[%emt 00:00:48]} Nc6 {[%clk 00:00:33]} {[%emt 00:01:35]} 29.
Qh6 {[%clk 00:13:13]} {[%emt 00:05:00]} Rg4 {[%clk 00:00:38]} {[%emt 00:00:25]}
30. gxf7+ {[%clk 00:13:02]} {[%emt 00:00:41]} Rxf7 {[%clk 00:00:50]} {[%emt
00:00:18]} 31. Bh7+ {[%clk 00:12:02]} {[%emt 00:01:29]} Rxh7 {[%clk 00:00:55]}
{[%emt 00:00:26]} 32. Qxe6+ {[%clk 00:12:28]} {[%emt 00:00:04]} Rf7 {[%clk
00:00:46]} {[%emt 00:00:39]} 33. Qxg4+ {[%clk 00:12:52]} {[%emt 00:00:06]} 1-0

[Event "TOP 12F 2021"]
[Site "RENNES, France"]
[Date "2021.08.26"]
[Round "1.13"]
[White "Auvray, Juliette"]
[Black "Sebag, Marie"]
[Result "0-1"]
[TimeControl "1H30 + 30 sec/coup"]
[WhiteElo "2004"]
[BlackElo "2447"]

1. e4 {[%clk 01:30:58]} {[%emt 00:00:02]} c5 {[%clk 01:30:57]} {[%emt
00:00:04]} 2. Nf3 {[%clk 01:31:22]} {[%emt 00:00:05]} d6 {[%clk 01:31:23]}
{[%emt 00:00:03]} 3. d4 {[%clk 01:31:45]} {[%emt 00:00:08]} cxd4 {[%clk
01:31:49]} {[%emt 00:00:04]} 4. Nxd4 {[%clk 01:32:10]} {[%emt 00:00:04]} Nf6
{[%clk 01:32:15]} {[%emt 00:00:04]} 5. Nc3 {[%clk 01:32:31]} {[%emt 00:00:09]}
a6 {[%clk 01:32:41]} {[%emt 00:00:04]} 6. f3 {[%clk 01:31:45]} {[%emt
00:01:16]} e5 {[%clk 01:33:04]} {[%emt 00:00:06]} 7. Nb3 {[%clk 01:32:08]}
{[%emt 00:00:07]} Be6 {[%clk 01:33:08]} {[%emt 00:00:27]} 8. Be3 {[%clk
01:31:59]} {[%emt 00:00:39]} h5 {[%clk 01:31:57]} {[%emt 00:01:40]} 9. Qd2
{[%clk 01:28:53]} {[%emt 00:03:36]} Nbd7 {[%clk 01:31:01]} {[%emt 00:01:26]} 10.
Nd5 {[%clk 01:23:49]} {[%emt 00:05:35]} Bxd5 {[%clk 01:30:36]} {[%emt
00:00:55]} 11. exd5 {[%clk 01:23:40]} {[%emt 00:00:39]} g6 {[%clk 01:30:33]}
{[%emt 00:00:33]} 12. Be2 {[%clk 01:19:29]} {[%emt 00:04:41]} Bg7 {[%clk
01:26:35]} {[%emt 00:04:29]} 13. c4 {[%clk 01:12:12]} {[%emt 00:07:47]} b6
{[%clk 01:25:10]} {[%emt 00:01:54]} 14. O-O {[%clk 01:09:08]} {[%emt 00:03:35]}
O-O {[%clk 01:25:08]} {[%emt 00:00:32]} 15. Rac1 {[%clk 01:02:54]} {[%emt
00:06:43]} Rc8 {[%clk 01:16:52]} {[%emt 00:08:45]} 16. Na1 {[%clk 00:53:46]}
{[%emt 00:09:38]} a5 {[%clk 00:37:00]} {[%emt 00:40:23]} 17. a3 {[%clk
00:48:20]} {[%emt 00:05:56]} a4 {[%clk 00:33:22]} {[%emt 00:04:07]} 18. Qb4
{[%clk 00:43:14]} {[%emt 00:05:36]} Nc5 {[%clk 00:33:18]} {[%emt 00:00:34]} 19.
Bxc5 {[%clk 00:39:42]} {[%emt 00:04:02]} bxc5 {[%clk 00:26:24]} {[%emt
00:07:24]} 20. Qxa4 {[%clk 00:38:27]} {[%emt 00:01:44]} e4 {[%clk 00:18:58]}
{[%emt 00:07:56]} 21. Qc2 {[%clk 00:31:57]} {[%emt 00:07:00]} exf3 {[%clk
00:18:36]} {[%emt 00:00:53]} 22. Bxf3 {[%clk 00:29:16]} {[%emt 00:03:10]} Rb8
{[%clk 00:16:58]} {[%emt 00:02:09]} 23. Rb1 {[%clk 00:25:41]} {[%emt 00:04:05]}
Ng4 {[%clk 00:16:03]} {[%emt 00:01:24]} 24. Bxg4 {[%clk 00:23:17]} {[%emt
00:02:54]} hxg4 {[%clk 00:16:23]} {[%emt 00:00:10]} 25. Kh1 {[%clk 00:15:48]}
{[%emt 00:08:00]} Qh4 {[%clk 00:09:16]} {[%emt 00:07:36]} 26. g3 {[%clk
00:13:28]} {[%emt 00:02:51]} Qh3 {[%clk 00:09:38]} {[%emt 00:00:08]} 27. Rg1
{[%clk 00:08:05]} {[%emt 00:05:53]} Rfe8 {[%clk 00:08:51]} {[%emt 00:01:17]} 28.
b4 {[%clk 00:07:03]} {[%emt 00:01:32]} cxb4 {[%clk 00:04:30]} {[%emt 00:04:51]}
29. Rxb4 {[%clk 00:05:34]} {[%emt 00:01:59]} Ra8 {[%clk 00:04:27]} {[%emt
00:00:33]} 30. a4 {[%clk 00:04:59]} {[%emt 00:01:05]} Re3 {[%clk 00:04:42]}
{[%emt 00:00:15]} 31. Rb3 {[%clk 00:03:36]} {[%emt 00:01:53]} Re5 {[%clk
00:04:17]} {[%emt 00:00:54]} 32. Ra3 {[%clk 00:02:53]} {[%emt 00:01:14]} Rae8
{[%clk 00:04:20]} {[%emt 00:00:27]} 33. Qg2 {[%clk 00:01:43]} {[%emt 00:01:40]}
Qxg2+ {[%clk 00:02:03]} {[%emt 00:02:47]} 34. Kxg2 {[%clk 00:01:24]} {[%emt
00:00:49]} Re2+ {[%clk 00:02:29]} {[%emt 00:00:04]} 35. Kh1 {[%clk 00:01:31]}
{[%emt 00:00:23]} Bd4 {[%clk 00:02:47]} {[%emt 00:00:11]} 36. Rf1 {[%clk
00:00:34]} {[%emt 00:01:28]} Re1 {[%clk 00:03:05]} {[%emt 00:00:12]} 37. Rxe1
{[%clk 00:00:57]} {[%emt 00:00:07]} Rxe1+ {[%clk 00:03:30]} {[%emt 00:00:05]}
0-1

[Event "TOP 12F 2021"]
[Site "RENNES, France"]
[Date "2021.08.26"]
[Round "1.14"]
[White "Javakhishvili, Lela"]
[Black "Coriat, Caroline"]
[Result "1-0"]
[TimeControl "1H30 + 30 sec/coup"]
[WhiteElo "2470"]
[BlackElo "1784"]

1. d4 {[%clk 01:30:55]} {[%emt 00:00:04]} d5 {[%clk 01:30:56]} {[%emt
00:00:05]} 2. c4 {[%clk 01:31:13]} {[%emt 00:00:12]} e6 {[%clk 01:31:18]}
{[%emt 00:00:08]} 3. Nc3 {[%clk 01:31:26]} {[%emt 00:00:17]} Bb4 {[%clk
01:31:42]} {[%emt 00:00:07]} 4. e3 {[%clk 01:31:10]} {[%emt 00:00:46]} Nf6
{[%clk 01:31:07]} {[%emt 00:01:05]} 5. a3 {[%clk 01:31:25]} {[%emt 00:00:15]}
Bxc3+ {[%clk 01:31:28]} {[%emt 00:00:10]} 6. bxc3 {[%clk 01:31:52]} {[%emt
00:00:03]} c5 {[%clk 01:30:34]} {[%emt 00:01:24]} 7. cxd5 {[%clk 01:31:45]}
{[%emt 00:00:36]} exd5 {[%clk 01:30:41]} {[%emt 00:00:24]} 8. Bd3 {[%clk
01:32:05]} {[%emt 00:00:09]} Nc6 {[%clk 01:28:21]} {[%emt 00:02:50]} 9. Ne2
{[%clk 01:32:14]} {[%emt 00:00:21]} O-O {[%clk 01:19:51]} {[%emt 00:09:00]} 10.
O-O {[%clk 01:31:49]} {[%emt 00:00:54]} Qa5 {[%clk 01:11:04]} {[%emt 00:09:19]}
11. Bd2 {[%clk 01:24:55]} {[%emt 00:07:23]} c4 {[%clk 01:09:26]} {[%emt
00:02:09]} 12. Bc2 {[%clk 01:25:04]} {[%emt 00:00:19]} Ne4 {[%clk 01:03:38]}
{[%emt 00:06:19]} 13. Be1 {[%clk 01:24:38]} {[%emt 00:00:55]} Re8 {[%clk
00:49:22]} {[%emt 00:14:47]} 14. Qb1 {[%clk 01:20:12]} {[%emt 00:04:56]} f5
{[%clk 00:37:48]} {[%emt 00:12:04]} 15. f3 {[%clk 01:17:58]} {[%emt 00:02:43]}
Nd6 {[%clk 00:33:59]} {[%emt 00:04:19]} 16. Bd2 {[%clk 01:17:33]} {[%emt
00:00:55]} Ne7 {[%clk 00:32:04]} {[%emt 00:02:26]} 17. Ng3 {[%clk 01:15:31]}
{[%emt 00:02:30]} g6 {[%clk 00:23:12]} {[%emt 00:09:23]} 18. Qb2 {[%clk
01:13:19]} {[%emt 00:02:42]} Bd7 {[%clk 00:20:06]} {[%emt 00:03:37]} 19. Rae1
{[%clk 01:06:58]} {[%emt 00:06:50]} Ba4 {[%clk 00:19:20]} {[%emt 00:01:17]} 20.
Bb1 {[%clk 01:05:37]} {[%emt 00:01:51]} Qb5 {[%clk 00:16:50]} {[%emt 00:02:59]}
21. Qc1 {[%clk 01:04:57]} {[%emt 00:01:10]} Qb3 {[%clk 00:16:32]} {[%emt
00:00:49]} 22. e4 {[%clk 01:02:33]} {[%emt 00:02:53]} fxe4 {[%clk 00:14:56]}
{[%emt 00:02:06]} 23. Bf4 {[%clk 01:00:10]} {[%emt 00:02:53]} Nb5 {[%clk
00:12:47]} {[%emt 00:02:39]} 24. Be5 {[%clk 00:59:08]} {[%emt 00:01:31]} Nc6
{[%clk 00:11:41]} {[%emt 00:01:37]} 25. Bf6 {[%clk 00:58:42]} {[%emt 00:00:55]}
Rf8 {[%clk 00:12:08]} {[%emt 00:00:04]} 26. Qg5 {[%clk 00:54:38]} {[%emt
00:04:34]} Qxc3 {[%clk 00:09:37]} {[%emt 00:03:02]} 27. Qxd5+ {[%clk 00:53:57]}
{[%emt 00:01:10]} Rf7 {[%clk 00:10:05]} {[%emt 00:00:02]} 28. Nxe4 {[%clk
00:53:34]} {[%emt 00:00:53]} Qxa3 {[%clk 00:10:17]} {[%emt 00:00:18]} 29. Ng5
{[%clk 00:53:16]} {[%emt 00:00:48]} Qf8 {[%clk 00:10:25]} {[%emt 00:00:23]} 30.
Qxc4 {[%clk 00:45:40]} {[%emt 00:08:05]} Nd6 {[%clk 00:08:54]} {[%emt
00:02:02]} 31. Qa2 {[%clk 00:37:27]} {[%emt 00:08:42]} Bb5 {[%clk 00:09:01]}
{[%emt 00:00:23]} 32. Nxf7 {[%clk 00:36:37]} {[%emt 00:01:20]} Qxf7 {[%clk
00:09:24]} {[%emt 00:00:08]} 33. Qe6 {[%clk 00:32:05]} {[%emt 00:05:01]} Bxf1
{[%clk 00:05:26]} {[%emt 00:04:29]} 34. Kxf1 {[%clk 00:26:56]} {[%emt
00:05:38]} Qxe6 {[%clk 00:05:13]} {[%emt 00:00:43]} 35. Rxe6 {[%clk 00:27:22]}
{[%emt 00:00:03]} Nc4 {[%clk 00:05:37]} {[%emt 00:00:07]} 36. Ba2 {[%clk
00:27:11]} {[%emt 00:00:41]} b5 {[%clk 00:05:50]} {[%emt 00:00:17]} 37. Rxc6
{[%clk 00:27:29]} {[%emt 00:00:11]} 1-0

[Event "TOP 12F 2021"]
[Site "RENNES, France"]
[Date "2021.08.26"]
[Round "1.15"]
[White "Maisuradze, Nino"]
[Black "Boutant, Jade"]
[Result "1-0"]
[TimeControl "1H30 + 30 sec/coup"]
[WhiteElo "2245"]
[BlackElo "1747"]

1. Nf3 {[%clk 01:30:47]} {[%emt 00:00:13]} d5 {[%clk 01:30:45]} {[%emt
00:00:15]} 2. b3 {[%clk 01:28:58]} {[%emt 00:02:19]} Nf6 {[%clk 01:27:38]}
{[%emt 00:03:36]} 3. Bb2 {[%clk 01:27:22]} {[%emt 00:02:08]} c5 {[%clk
01:26:28]} {[%emt 00:01:39]} 4. e3 {[%clk 01:27:13]} {[%emt 00:00:40]} e6
{[%clk 01:25:45]} {[%emt 00:01:12]} 5. d4 {[%clk 01:21:01]} {[%emt 00:06:43]}
cxd4 {[%clk 01:25:03]} {[%emt 00:01:12]} 6. exd4 {[%clk 01:21:23]} {[%emt
00:00:08]} Be7 {[%clk 01:23:03]} {[%emt 00:02:29]} 7. Nbd2 {[%clk 01:20:47]}
{[%emt 00:01:08]} O-O {[%clk 01:22:11]} {[%emt 00:01:21]} 8. Bd3 {[%clk
01:21:03]} {[%emt 00:00:14]} Nc6 {[%clk 01:19:47]} {[%emt 00:02:53]} 9. a3
{[%clk 01:21:12]} {[%emt 00:00:22]} Qc7 {[%clk 01:12:08]} {[%emt 00:08:09]} 10.
O-O {[%clk 01:20:30]} {[%emt 00:01:12]} b6 {[%clk 01:05:29]} {[%emt 00:07:06]}
11. Ne5 {[%clk 01:19:41]} {[%emt 00:01:22]} Bb7 {[%clk 00:56:32]} {[%emt
00:09:26]} 12. Re1 {[%clk 00:52:25]} {[%emt 00:27:46]} a5 {[%clk 00:46:51]}
{[%emt 00:10:11]} 13. Qe2 {[%clk 00:49:25]} {[%emt 00:03:30]} Nb8 {[%clk
00:30:08]} {[%emt 00:17:13]} 14. Rac1 {[%clk 00:48:58]} {[%emt 00:00:57]} Qd8
{[%clk 00:17:41]} {[%emt 00:12:56]} 15. f4 {[%clk 00:45:39]} {[%emt 00:03:50]}
Bd6 {[%clk 00:05:51]} {[%emt 00:12:17]} 16. f5 {[%clk 00:42:57]} {[%emt
00:03:14]} exf5 {[%clk 00:05:33]} {[%emt 00:00:48]} 17. Bxf5 {[%clk 00:43:00]}
{[%emt 00:00:28]} Nc6 {[%clk 00:02:47]} {[%emt 00:03:17]} 18. Qf3 {[%clk
00:29:36]} {[%emt 00:13:54]} Ne7 {[%clk 00:00:50]} {[%emt 00:02:26]} 19. Bd3
{[%clk 00:29:34]} {[%emt 00:00:32]} Ba6 {[%clk 00:00:46]} {[%emt 00:00:35]} 20.
c4 {[%clk 00:29:05]} {[%emt 00:00:59]} dxc4 {[%clk 00:00:43]} {[%emt 00:00:33]}
21. bxc4 {[%emt 00:05:03]} Bxe5 {[%emt 00:00:18]} 22. Rxe5 {[%emt 00:00:08]}
Ng6 {[%emt 00:00:38]} 1-0

[Event "TOP 12F 2021"]
[Site "RENNES, France"]
[Date "2021.08.26"]
[Round "1.16"]
[White "Parot de Sousa, Sophie"]
[Black "Fischer, Julie"]
[Result "0-1"]
[TimeControl "1H30 + 30 sec/coup"]
[WhiteElo "1447"]
[BlackElo "2073"]

1. c4 {[%clk 01:30:58]} {[%emt 00:00:01]} Nf6 {[%clk 01:30:55]} {[%emt
00:00:05]} 2. Nc3 {[%clk 01:31:23]} {[%emt 00:00:05]} g6 {[%clk 01:31:19]}
{[%emt 00:00:06]} 3. Nf3 {[%clk 01:31:36]} {[%emt 00:00:17]} Bg7 {[%clk
01:31:45]} {[%emt 00:00:05]} 4. g3 {[%clk 01:30:59]} {[%emt 00:01:07]} O-O
{[%clk 01:32:07]} {[%emt 00:00:07]} 5. Bg2 {[%clk 01:30:55]} {[%emt 00:00:35]}
d6 {[%clk 01:32:29]} {[%emt 00:00:07]} 6. O-O {[%clk 01:30:30]} {[%emt
00:00:56]} Nc6 {[%clk 01:32:51]} {[%emt 00:00:07]} 7. d4 {[%clk 01:10:53]}
{[%emt 00:20:07]} e5 {[%clk 01:32:02]} {[%emt 00:01:19]} 8. d5 {[%clk
01:00:54]} {[%emt 00:10:29]} Nb8 {[%clk 01:30:53]} {[%emt 00:01:37]} 9. e4
{[%clk 00:48:08]} {[%emt 00:13:18]} a5 {[%clk 01:30:38]} {[%emt 00:00:44]} 10.
Bg5 {[%clk 00:45:55]} {[%emt 00:02:45]} h6 {[%clk 01:26:21]} {[%emt 00:04:47]}
11. Bc1 {[%clk 00:40:07]} {[%emt 00:06:18]} Na6 {[%clk 01:26:10]} {[%emt
00:00:40]} 12. Nd2 {[%clk 00:39:14]} {[%emt 00:01:24]} Nc5 {[%clk 01:26:15]}
{[%emt 00:00:25]} 13. Nb3 {[%clk 00:31:08]} {[%emt 00:08:36]} Nfd7 {[%clk
01:26:19]} {[%emt 00:00:25]} 14. Nxc5 {[%clk 00:24:57]} {[%emt 00:06:42]} Nxc5
{[%clk 01:25:44]} {[%emt 00:01:03]} 15. Be3 {[%clk 00:22:41]} {[%emt 00:02:48]}
b6 {[%clk 01:25:52]} {[%emt 00:00:21]} 16. Qc2 {[%clk 00:18:58]} {[%emt
00:04:12]} Bd7 {[%clk 01:25:52]} {[%emt 00:00:29]} 17. Rac1 {[%clk 00:14:07]}
{[%emt 00:05:23]} Qc8 {[%clk 01:25:47]} {[%emt 00:00:33]} 18. Bxc5 {[%emt
00:06:23]} bxc5 {[%clk 01:26:06]} {[%emt 00:00:09]} 19. Nb5 {[%clk 00:07:54]}
{[%emt 00:00:53]} a4 {[%clk 01:26:20]} {[%emt 00:00:15]} 20. Nc3 {[%clk
00:07:16]} {[%emt 00:01:10]} Qb7 {[%clk 01:26:20]} {[%emt 00:00:29]} 21. b3
{[%clk 00:04:40]} {[%emt 00:03:07]} axb3 {[%clk 01:26:32]} {[%emt 00:00:17]} 22.
axb3 {[%clk 00:04:45]} {[%emt 00:00:26]} Rfb8 {[%clk 01:26:51]} {[%emt
00:00:10]} 23. Ra1 {[%clk 00:02:12]} {[%emt 00:03:05]} Rxa1 {[%clk 01:26:13]}
{[%emt 00:01:08]} 24. Rxa1 {[%clk 00:02:40]} {[%emt 00:00:03]} Qxb3 {[%clk
01:26:05]} {[%emt 00:00:37]} 25. Qxb3 {[%clk 00:03:05]} {[%emt 00:00:05]} Rxb3
{[%clk 01:26:27]} {[%emt 00:00:08]} 26. Ra8+ {[%clk 00:03:08]} {[%emt
00:00:28]} Kh7 {[%clk 01:26:50]} {[%emt 00:00:07]} 27. Na2 {[%clk 00:02:21]}
{[%emt 00:01:18]} Rb1+ {[%clk 01:27:11]} {[%emt 00:00:08]} 28. Bf1 {[%clk
00:02:42]} {[%emt 00:00:09]} Bh3 {[%clk 01:27:34]} {[%emt 00:00:07]} 0-1